fUST/lending_fUST_20250701
["ID","MTS","AMOUNT","RATE_DAILY","PERIOD"]
[368705752,1751316547347,-460.0,0.00018516,2]
[368705753,1751316547368,-460.0,0.00018516,2]
[368705754,1751316547393,-460.0,0.00018516,2]
[368705755,1751316547414,-460.0,0.00018516,2]
[368705756,1751316547439,-460.0,0.00018516,2]
[368705757,1751316547460,-460.0,0.00018516,2]
[368705758,1751316547497,-460.0,0.00018516,2]
[368705759,1751316547524,-460.0,0.00018516,2]
[368705760,1751316547548,-460.0,0.00018516,2]
[368705761,1751316547573,-460.0,0.00018516,2]
[368705762,1751316547596,-460.0,0.00018516,2]
[368705763,1751316547618,-460.0,0.00018516,2]
[368705764,1751316547641,-590.27,0.00018516,2]
[368705765,1751316547664,-460.0,0.00018516,2]
[368705766,1751316547689,-460.0,0.00018516,2]
[368705767,1751316547712,-500.0,0.00018516,2]
[368705768,1751316547735,-500.0,0.00018516,2]
[368705769,1751316547757,-152.40883423,0.00018516,2]
[368705770,1751316547780,-171.95082435,0.00018516,2]
[368705771,1751316547803,-418.56366478,0.00018516,2]
[368705772,1751316547826,-500.0,0.00018516,2]
[368705773,1751316547849,-180.69708439,0.00018516,2]
[368705774,1751316547871,-500.0,0.00018516,2]
[368705775,1751316547895,-267.04316431,0.00018516,2]
[368705797,1751316555113,-232.95683569,0.00018516,2]
[368705798,1751316555135,-290.17629525,0.00018516,2]
[368705799,1751316555156,-460.0,0.00018517,2]
[368705800,1751316555177,-460.0,0.00018517,2]
[368705801,1751316555198,-460.0,0.00018517,2]
[368705802,1751316555220,-460.0,0.00018517,2]
[368705803,1751316555242,-460.0,0.00018517,2]
[368705804,1751316555263,-460.0,0.00018517,2]
[368705805,1751316555285,-460.0,0.00018517,2]
[368705806,1751316555307,-395.08148318,0.00018517,2]
[368705807,1751316555328,-460.0,0.00018517,2]
[368705808,1751316555348,-460.0,0.00018517,2]
[368705809,1751316555370,-460.0,0.00018517,2]
[368705810,1751316555391,-460.0,0.00018517,2]
[368705811,1751316555414,-460.0,0.00018517,2]
[368705812,1751316555438,-460.0,0.00018517,2]
[368705813,1751316555461,-460.0,0.00018517,2]
[368705814,1751316555484,-541.08307448,0.00018517,2]
[368705815,1751316555506,-460.0,0.00018517,2]
[368705816,1751316555527,-460.0,0.00018517,2]
[368705817,1751316555548,-460.0,0.00018517,2]
[368705818,1751316555570,-460.0,0.00018517,2]
[368705819,1751316555591,-498.57138656,0.00018517,2]
[368705820,1751316555613,-460.0,0.00018517,2]
[368705821,1751316555634,-460.0,0.00018517,2]
[368705822,1751316555656,-460.0,0.00018517,2]
[368705823,1751316555677,-460.0,0.00018517,2]
[368705824,1751316555699,-460.0,0.00018517,2]
[368705825,1751316555720,-460.0,0.00018517,2]
[368705826,1751316555741,-460.0,0.00018517,2]
[368705827,1751316555764,-460.0,0.00018517,2]
[368705828,1751316555786,-460.0,0.00018517,2]
[368705829,1751316555808,-460.0,0.00018517,2]
[368705830,1751316555832,-428.34106996,0.00018517,2]
[368705831,1751316555853,-460.0,0.00018517,2]
[368705832,1751316555876,-460.0,0.00018517,2]
[368705833,1751316555898,-460.0,0.00018517,2]
[368705834,1751316555921,-460.0,0.00018517,2]
[368705835,1751316555946,-596.84638316,0.00018517,2]
[368705836,1751316555968,-460.0,0.00018517,2]
[368705837,1751316555990,-460.0,0.00018517,2]
[368705838,1751316556013,-460.0,0.00018517,2]
[368705839,1751316556035,-460.0,0.00018517,2]
[368705840,1751316556057,-460.0,0.00018517,2]
[368705841,1751316556080,-460.0,0.00018517,2]
[368705842,1751316556104,-632.64,0.00018517,2]
[368705843,1751316556127,-460.0,0.00018517,2]
[368705844,1751316556149,-460.0,0.00018517,2]
[368705845,1751316556171,-460.0,0.00018517,2]
[368705846,1751316556193,-460.0,0.00018517,2]
[368705847,1751316556214,-460.0,0.00018517,2]
[368705848,1751316556236,-460.0,0.00018517,2]
[368705849,1751316556258,-24900.0,0.00018517,2]
[368705850,1751316556280,-187.67913548,0.00018789,2]
[368705851,1751316556302,-315.33,0.00018789,2]
[368705852,1751316556326,-460.0,0.00018789,2]
[368705853,1751316556347,-460.0,0.00018789,2]
[368705854,1751316556369,-199.5,0.00018789,2]
[368705855,1751316556394,-395.1,0.00018789,2]
[368705856,1751316556417,-435.22,0.00018789,2]
[368705857,1751316556440,-491.67583524,0.0001879,2]
[368705858,1751316556463,-460.0,0.0001879,2]
[368705859,1751316556488,-383.36,0.0001879,2]
[368705860,1751316556511,-460.0,0.0001879,2]
[368705861,1751316556535,-460.0,0.0001879,2]
[368705862,1751316556558,-262.3,0.0001879,2]
[368705863,1751316556582,-460.0,0.0001879,2]
[368705864,1751316556603,-460.0,0.0001879,2]
[368705865,1751316556625,-495.42,0.0001879,2]
[368705866,1751316556647,-152.13,0.0001879,2]
[368705867,1751316556670,-529.05,0.0001879,2]
[368705868,1751316556692,-460.0,0.0001879,2]
[368705869,1751316556714,-511.41,0.0001879,2]
[368705870,1751316556737,-460.0,0.0001879,2]
[368705871,1751316556758,-460.0,0.0001879,2]
[368705872,1751316556780,-460.0,0.0001879,2]
[368705873,1751316556802,-173.54,0.0001879,2]
[368705874,1751316556824,-460.0,0.0001879,2]
[368705875,1751316556845,-368.28,0.0001879,2]
[368705876,1751316556986,-159.26,0.0001879,2]
[368705877,1751316557039,-460.0,0.0001879,2]
[368705878,1751316557062,-587.07,0.0001879,2]
[368705879,1751316557084,-460.0,0.0001879,2]
[368705880,1751316557106,-158.66,0.0001879,2]
[368705881,1751316557128,-167.4,0.0001879,2]
[368705882,1751316557150,-460.0,0.0001879,2]
[368705883,1751316557172,-460.0,0.0001879,2]
[368705884,1751316557195,-460.0,0.0001879,2]
[368705885,1751316557218,-460.0,0.0001879,2]
[368705886,1751316557241,-436.24,0.0001879,2]
[368705887,1751316557263,-381.86,0.0001879,2]
[368705888,1751316557285,-249.66,0.0001879,2]
[368705889,1751316557308,-523.79,0.0001879,2]
[368705890,1751316557331,-579.01,0.0001879,2]
[368705891,1751316557351,-460.0,0.00018791,2]
[368705892,1751316557373,-460.0,0.00018791,2]
[368705893,1751316557400,-460.0,0.00018791,2]
[368705894,1751316557420,-460.0,0.00018791,2]
[368705895,1751316557444,-460.0,0.00018791,2]
[368705896,1751316557465,-460.0,0.00018791,2]
[368705897,1751316557489,-270.87499794,0.00018791,2]
[368705898,1751316557511,-460.0,0.00018791,2]
[368705899,1751316557532,-175.76,0.00018791,2]
[368705900,1751316557552,-460.0,0.00018791,2]
[368705901,1751316557574,-393.61592823,0.00018791,2]
[368705902,1751316557595,-460.0,0.00018791,2]
[368705903,1751316557617,-460.0,0.00018791,2]
[368705904,1751316557638,-460.0,0.00018791,2]
[368705905,1751316557659,-460.0,0.00018791,2]
[368705906,1751316557681,-563.34,0.00018791,2]
[368705907,1751316557703,-216.96,0.00018791,2]
[368705908,1751316557727,-460.0,0.00018791,2]
[368705909,1751316557749,-266.5,0.00018791,2]
[368705910,1751316557771,-460.0,0.00018791,2]
[368705911,1751316557794,-460.0,0.00018791,2]
[368705912,1751316557816,-379.24,0.00018791,2]
[368705913,1751316557839,-460.0,0.00018791,2]
[368705914,1751316557862,-460.0,0.00018791,2]
[368705915,1751316557886,-632.64,0.00018791,2]
[368705916,1751316557910,-460.0,0.00018791,2]
[368705917,1751316557936,-460.0,0.00018791,2]
[368705918,1751316557959,-526.9,0.00018791,2]
[368705919,1751316557981,-460.0,0.00018791,2]
[368705920,1751316558004,-460.0,0.00018791,2]
[368705921,1751316558027,-460.0,0.00018791,2]
[368705922,1751316558052,-286.33676599,0.000189,2]
[368705923,1751316558074,-152.02823383,0.00019,2]
[368705924,1751316558099,-460.0,0.00019063,2]
[368705925,1751316558122,-175.51,0.00019063,2]
[368705926,1751316558145,-460.0,0.00019064,2]
[368705927,1751316558168,-460.0,0.00019064,2]
[368705928,1751316558192,-460.0,0.00019064,2]
[368705929,1751316558215,-460.0,0.00019064,2]
[368705930,1751316558238,-460.0,0.00019064,2]
[368705931,1751316558260,-347.1,0.00019064,2]
[368705932,1751316558282,-460.0,0.00019064,2]
[368705933,1751316558305,-460.0,0.00019064,2]
[368705934,1751316558328,-460.0,0.00019064,2]
[368705935,1751316558351,-460.0,0.00019064,2]
[368705936,1751316558375,-229.32,0.00019064,2]
[368705937,1751316558401,-303.04,0.00019064,2]
[368705938,1751316558426,-226.49,0.00019064,2]
[368705939,1751316558452,-460.0,0.00019064,2]
[368705940,1751316558477,-460.0,0.00019065,2]
[368705941,1751316558502,-506.0,0.00019065,2]
[368705942,1751316558523,-296.51,0.00019065,2]
[368705943,1751316558544,-152.08,0.00019065,2]
[368705944,1751316558568,-179.1,0.00019065,2]
[368705945,1751316558590,-409.76,0.00019065,2]
[368705946,1751316558611,-215.65,0.00019065,2]
[368705947,1751316558634,-394.79,0.00019065,2]
[368705948,1751316558657,-527.87,0.00019065,2]
[368705949,1751316558681,-632.64,0.00019065,2]
[368705950,1751316558702,-460.0,0.00019065,2]
[368705951,1751316558724,-460.0,0.00019065,2]
[368705952,1751316558746,-233.64,0.00019065,2]
[368705953,1751316558767,-566.06,0.00019065,2]
[368705954,1751316558790,-460.0,0.00019065,2]
[368705955,1751316558811,-2642.14363645,0.00019096,2]
[368705956,1751316558833,-165.826447,0.00019178,2]
[368705957,1751316558854,-212.59306119,0.00019242,2]
[368705958,1751316558875,-161.54,0.00019332,3]
[368705959,1751316558896,-484.66,0.00019332,3]
[368705960,1751316558919,-460.0,0.00019337,2]
[368705961,1751316558942,-460.0,0.00019338,2]
[368705962,1751316558964,-460.0,0.00019338,2]
[368705963,1751316558987,-460.0,0.00019338,2]
[368705964,1751316559009,-460.0,0.00019338,2]
[368705965,1751316559032,-292.40618745,0.00019338,2]
[368705966,1751316559053,-460.0,0.00019338,2]
[368705967,1751316559076,-460.0,0.00019338,2]
[368705968,1751316559098,-460.0,0.00019338,2]
[368705969,1751316559120,-460.0,0.00019338,2]
[368705970,1751316559141,-460.0,0.00019339,2]
[368705971,1751316559164,-632.64,0.00019339,2]
[368705972,1751316559187,-460.0,0.00019339,2]
[368705973,1751316559209,-518.49,0.00019339,2]
[368705974,1751316559231,-460.0,0.00019339,2]
[368705975,1751316559253,-231.51769183,0.0001934,2]
[368705976,1751316559273,-521.31251708,0.00019342,2]
[368705977,1751316559294,-460.0,0.00019342,2]
[368705978,1751316559314,-460.0,0.00019342,2]
[368705979,1751316559334,-460.0,0.00019342,2]
[368705980,1751316559354,-462.45635377,0.00019342,2]
[368705981,1751316559375,-460.0,0.00019342,2]
[368705982,1751316559401,-460.0,0.00019342,2]
[368705983,1751316559423,-460.0,0.00019342,2]
[368705984,1751316559447,-460.0,0.00019342,2]
[368705985,1751316559468,-357.9491647,0.00019342,2]
[368705986,1751316559488,-460.0,0.00019342,2]
[368705987,1751316559510,-368.1015585,0.00019342,2]
[368705988,1751316559534,-460.0,0.00019342,2]
[368705989,1751316559559,-551.73,0.00019342,2]
[368705990,1751316559586,-460.0,0.00019342,2]
[368705991,1751316559614,-460.0,0.00019342,2]
[368705992,1751316559639,-460.0,0.00019342,2]
[368705993,1751316559662,-460.0,0.00019342,2]
[368705994,1751316559685,-460.0,0.00019342,2]
[368705995,1751316559705,-460.0,0.00019342,2]
[368705996,1751316559725,-460.0,0.00019342,2]
[368705997,1751316559745,-465.36413209,0.00019342,2]
[368705998,1751316559766,-460.0,0.00019342,2]
[368705999,1751316559787,-460.0,0.00019342,2]
[368706000,1751316559811,-460.0,0.00019342,2]
[368706001,1751316559832,-476.58884029,0.00019342,2]
[368706002,1751316559855,-460.0,0.00019342,2]
[368706003,1751316559878,-567.62,0.00019342,2]
[368706004,1751316559900,-460.0,0.00019342,2]
[368706005,1751316559921,-460.0,0.00019342,2]
[368706006,1751316559942,-460.0,0.00019342,2]
[368706007,1751316559962,-175.17399476,0.00019342,2]
[368706008,1751316559986,-460.0,0.00019342,2]
[368706009,1751316560007,-425.33509341,0.00019342,2]
[368706010,1751316560028,-460.0,0.00019342,2]
[368706011,1751316560049,-460.0,0.00019342,2]
[368706012,1751316560071,-460.0,0.00019342,2]
[368706013,1751316560092,-460.0,0.00019342,2]
[368706014,1751316560112,-460.0,0.00019342,2]
[368706015,1751316560134,-477.17,0.00019342,2]
[368706016,1751316560155,-541.14,0.00019342,2]
[368706017,1751316560177,-460.0,0.00019342,2]
[368706018,1751316560342,-460.0,0.00019342,2]
[368706019,1751316560365,-475.54,0.00019342,2]
[368706020,1751316560389,-460.0,0.00019342,2]
[368706021,1751316560414,-460.0,0.00019342,2]
[368706022,1751316560438,-460.0,0.00019342,2]
[368706023,1751316560458,-505.54,0.00019342,2]
[368706024,1751316560484,-460.0,0.00019342,2]
[368706025,1751316560510,-460.0,0.00019342,2]
[368706026,1751316560532,-460.0,0.00019342,2]
[368706027,1751316560556,-500.0,0.00019342,2]
[368706028,1751316560580,-460.0,0.00019342,2]
[368706029,1751316560602,-460.0,0.00019342,2]
[368706030,1751316560623,-460.0,0.00019342,2]
[368706031,1751316560643,-460.0,0.00019342,2]
[368706032,1751316560663,-460.0,0.00019342,2]
[368706033,1751316560685,-460.0,0.00019342,2]
[368706034,1751316560705,-460.0,0.00019342,2]
[368706035,1751316560726,-405.00108136,0.00019342,2]
[368706036,1751316560746,-565.49,0.00019342,2]
[368706037,1751316560766,-256.48540185,0.00019342,2]
[368706038,1751316560788,-460.0,0.00019342,2]
[368706039,1751316560808,-460.0,0.00019342,2]
[368706040,1751316560829,-473.71,0.00019342,2]
[368706041,1751316560850,-460.0,0.00019342,2]
[368706042,1751316560871,-460.0,0.00019342,2]
[368706043,1751316560892,-460.0,0.00019342,2]
[368706044,1751316560914,-460.0,0.00019342,2]
[368706045,1751316560937,-460.0,0.00019342,2]
[368706046,1751316560959,-460.0,0.00019342,2]
[368706047,1751316560981,-460.0,0.00019342,2]
[368706048,1751316561002,-460.0,0.00019342,2]
[368706049,1751316561024,-460.0,0.00019342,2]
[368706050,1751316561045,-460.0,0.00019342,2]
[368706051,1751316561066,-460.0,0.00019342,2]
[368706052,1751316561087,-529.5,0.00019342,2]
[368706053,1751316561109,-460.0,0.00019342,2]
[368706054,1751316561130,-460.0,0.00019342,2]
[368706055,1751316561150,-254.61117294,0.00019342,2]
[368706056,1751316561172,-460.0,0.00019342,2]
[368706057,1751316561195,-583.94,0.00019342,2]
[368706058,1751316561216,-460.0,0.00019342,2]
[368706059,1751316561236,-460.0,0.00019342,2]
[368706060,1751316561257,-460.0,0.00019342,2]
[368706061,1751316561278,-460.0,0.00019342,2]
[368706062,1751316561300,-476.21,0.00019342,2]
[368706063,1751316561320,-460.0,0.00019342,2]
[368706064,1751316561340,-460.0,0.00019342,2]
[368706065,1751316561361,-594.93,0.00019342,2]
[368706066,1751316561382,-466.06,0.00019342,2]
[368706067,1751316561407,-460.0,0.00019342,2]
[368706068,1751316561428,-460.0,0.00019342,2]
[368706069,1751316561451,-460.0,0.00019342,2]
[368706070,1751316561472,-500.0,0.00019343,2]
[368706071,1751316561494,-500.0,0.0001937,2]
[368706072,1751316561516,-500.0,0.00019398,2]
[368706073,1751316561535,-500.0,0.00019425,2]
[368706074,1751316561556,-424.0,0.00019453,2]
[368706075,1751316561576,-500.0,0.00019465,2]
[368706076,1751316561596,-332.15722067,0.00019468,2]
[368706077,1751316561617,-460.0,0.00019468,2]
[368706078,1751316561637,-460.0,0.00019468,2]
[368706079,1751316561657,-460.0,0.00019468,2]
[368706080,1751316561677,-460.0,0.00019468,2]
[368706081,1751316561699,-151.78809051,0.00019468,2]
[368706082,1751316561720,-460.0,0.00019468,2]
[368706083,1751316561741,-500.0,0.00019493,2]
[368706084,1751316561760,-500.0,0.00019493,2]
[368706085,1751316561781,-500.0,0.00019497,2]
[368706086,1751316561802,-500.0,0.00019497,2]
[368706087,1751316561822,-151.0,0.00019497,2]
[368706088,1751316561845,-460.0,0.00019611,2]
[368706089,1751316561867,-460.0,0.00019612,2]
[368706090,1751316561889,-460.0,0.00019612,2]
[368706091,1751316561912,-351.66,0.00019612,2]
[368706092,1751316561936,-460.0,0.00019612,2]
[368706093,1751316561959,-275.22,0.00019612,2]
[368706094,1751316561981,-460.0,0.00019612,2]
[368706095,1751316562004,-460.0,0.00019612,2]
[368706096,1751316562027,-328.55,0.00019612,2]
[368706097,1751316562052,-632.64,0.00019613,2]
[368706098,1751316562076,-460.0,0.00019613,2]
[368706099,1751316562099,-460.0,0.00019613,2]
[368706100,1751316562121,-169.5,0.00019616,2]
[368706101,1751316562143,-460.0,0.00019616,2]
[368706102,1751316562164,-460.0,0.00019616,2]
[368706103,1751316562188,-152.08,0.00019616,2]
[368706104,1751316562209,-460.0,0.00019616,2]
[368706105,1751316562231,-317.1,0.00019616,2]
[368706106,1751316562254,-270.28,0.00019616,2]
[368706107,1751316562278,-460.0,0.00019616,2]
[368706108,1751316562303,-460.0,0.00019616,2]
[368706109,1751316562329,-357.15,0.00019616,2]
[368706110,1751316562351,-205.78,0.00019616,2]
[368706111,1751316562375,-154.23,0.00019616,2]
[368706112,1751316562401,-460.0,0.00019616,2]
[368706113,1751316562423,-370.68,0.00019616,2]
[368706114,1751316562448,-195.79,0.00019616,2]
[368706115,1751316562471,-460.0,0.00019616,2]
[368706116,1751316562493,-460.0,0.00019616,2]
[368706117,1751316562514,-151.0,0.00019616,2]
[368706118,1751316562535,-151.0,0.00019617,2]
[368706119,1751316562557,-151.0,0.00019617,2]
[368706120,1751316562578,-151.0,0.00019617,2]
[368706121,1751316562599,-151.0,0.00019617,2]
[368706122,1751316562619,-484.415928,0.00019617,2]
[368706123,1751316562640,-151.0,0.00019617,2]
[368706124,1751316562662,-484.415928,0.00019617,2]
[368706125,1751316562682,-151.0,0.00019617,2]
[368706126,1751316562705,-151.0,0.00019617,2]
[368706127,1751316562726,-500.0,0.00019721,2]
[368706128,1751316562748,-501.07557052,0.00019721,2]
[368706129,1751316562769,-245.6856227,0.00019721,2]
[368706130,1751316562790,-500.0,0.00019721,2]
[368706131,1751316562811,-460.0,0.00019742,2]
[368706132,1751316562831,-460.0,0.00019742,2]
[368706133,1751316562852,-460.0,0.00019742,2]
[368706134,1751316562874,-269.90502438,0.000198,2]
[368706135,1751316563029,544.34,0.00019616,2]
[368706136,1751316563060,160.0,0.00019335,2]
[368706137,1751316565274,460.0,0.00018515,2]
[368706138,1751316565532,460.0,0.00018789,2]
[368706139,1751316565766,479.89,0.00019063,2]
[368706141,1751316570102,460.0,0.00018515,2]
[368706142,1751316570356,460.0,0.00018789,2]
[368706143,1751316570621,460.0,0.00019063,2]
[368706144,1751316570881,411.33,0.00019337,2]
[368706145,1751316575404,329.31310792,0.00019342,2]
[368706146,1751316578330,460.0,0.00018517,2]
[368706262,1751316585693,460.0,0.00019342,2]
[368706273,1751316585943,218.45,0.00019616,2]
[368706303,1751316586721,532.35,0.00019342,2]
[368706328,1751316590709,460.0,0.00018517,2]
[368706329,1751316590981,460.0,0.00018791,2]
[368706330,1751316591246,460.0,0.00019065,2]
[368706331,1751316591536,355.13,0.00019339,2]
[368706332,1751316591710,460.0,0.00019342,2]
[368706333,1751316591986,460.0,0.00019616,2]
[368706334,1751316593998,460.0,0.00019342,2]
[368706335,1751316596784,460.0,0.00018517,2]
[368706336,1751316597122,458.59299514,0.00018516,2]
[368706337,1751316598042,460.0,0.00019342,2]
[368706338,1751316598324,536.19,0.00019616,2]
[368706339,1751316600320,460.0,0.00018517,2]
[368706349,1751316602904,151.0,0.00019612,2]
[368706350,1751316602949,460.0,0.00018517,2]
[368706351,1751316603215,240.53,0.00018791,2]
[368706352,1751316605538,460.0,0.00018517,2]
[368706353,1751316605787,430.91117942,0.00018791,2]
[368706354,1751316605811,29.08882058,0.00018791,2]
[368706355,1751316606034,460.0,0.00019065,2]
[368706356,1751316606344,460.0,0.00019339,2]
[368706357,1751316606623,460.0,0.00019613,2]
[368706358,1751316607157,151.0,0.00019612,2]
[368706359,1751316619972,1716.7670657,0.00019199,2]
[368706360,1751316620697,460.0,0.00018515,2]
[368706361,1751316620946,460.0,0.00018789,2]
[368706372,1751316621189,460.0,0.00019063,2]
[368706383,1751316621444,499.5,0.00019337,2]
[368706402,1751316621920,460.0,0.00018517,2]
[368706403,1751316622189,402.33,0.00018791,2]
[368706404,1751316624041,460.0,0.00018517,2]
[368706405,1751316624146,460.0,0.00018517,2]
[368706406,1751316624322,565.36,0.00018791,2]
[368706407,1751316628734,460.0,0.00019342,2]
[368706408,1751316628990,214.41,0.00019616,2]
[368706411,1751316632549,-460.0,0.00019885,2]
[368706412,1751316632560,-407.0,0.00019885,2]
[368706413,1751316632571,-151.0,0.00019886,2]
[368706414,1751316632582,-151.0,0.00019886,2]
[368706415,1751316632592,-460.0,0.00019886,2]
[368706416,1751316632603,-460.0,0.00019886,2]
[368706417,1751316632614,-300.0,0.00019886,2]
[368706418,1751316632624,-632.64,0.00019887,2]
[368706419,1751316632634,-499.79,0.00019887,2]
[368706420,1751316632644,-460.0,0.00019887,2]
[368706421,1751316632654,-377.67,0.00019887,2]
[368706422,1751316632664,-432.18,0.0001989,2]
[368706423,1751316632674,-191.91,0.0001989,2]
[368706424,1751316632684,-460.0,0.0001989,2]
[368706425,1751316632694,-364.8,0.0001989,2]
[368706426,1751316632704,-320.54,0.0001989,2]
[368706427,1751316632714,-227.7,0.0001989,2]
[368706428,1751316632724,-212.59306117,0.00019907,2]
[368706429,1751316632734,-296.98487625,0.00019998,2]
[368706430,1751316632743,-460.0,0.00019998,2]
[368706431,1751316632754,-460.0,0.00019998,2]
[368706432,1751316632765,-460.0,0.00019998,2]
[368706433,1751316632775,-460.0,0.00019998,2]
[368706434,1751316632785,-460.0,0.00019998,2]
[368706435,1751316632794,-460.0,0.00019998,2]
[368706436,1751316632805,-460.0,0.00019998,2]
[368706437,1751316632815,-460.0,0.00019998,2]
[368706438,1751316632825,-460.0,0.00019998,2]
[368706439,1751316632835,-460.0,0.00019998,2]
[368706440,1751316632844,-264.598327,0.00019998,2]
[368706441,1751316632854,-460.0,0.00019998,2]
[368706442,1751316632864,-456.48873427,0.00019998,2]
[368706443,1751316632875,-460.0,0.00019998,2]
[368706444,1751316632885,-160.0,0.0002,3]
[368706445,1751316632895,-633.51632741,0.00020007,2]
[368706446,1751316632906,-586.92908078,0.00020016,2]
[368706447,1751316632922,-460.0,0.00020016,2]
[368706448,1751316632932,-460.0,0.00020016,2]
[368706449,1751316632942,-274.87215675,0.00020083,2]
[368706450,1751316632953,-706.85249699,0.00020139,2]
[368706451,1751316632963,-460.0,0.00020157,2]
[368706452,1751316632973,-460.0,0.00020157,2]
[368706453,1751316632984,-1000.0,0.00020157,2]
[368706454,1751316632994,-460.0,0.00020157,2]
[368706455,1751316633003,-460.0,0.00020157,2]
[368706456,1751316633015,-363.81210287,0.00020157,2]
[368706457,1751316633025,-460.0,0.00020157,2]
[368706458,1751316633035,-460.0,0.00020157,2]
[368706460,1751316633046,-460.0,0.00020157,2]
[368706462,1751316633056,-151.0,0.00020157,2]
[368706464,1751316633067,-151.0,0.00020157,2]
[368706466,1751316633077,-151.0,0.00020157,2]
[368706468,1751316633086,-552.98,0.00020158,2]
[368706470,1751316633097,-460.0,0.00020158,2]
[368706472,1751316633108,-606.14,0.00020158,2]
[368706474,1751316633118,-151.0,0.00020158,2]
[368706476,1751316633128,-151.0,0.00020158,2]
[368706478,1751316633139,-151.0,0.00020158,2]
[368706480,1751316633149,-273.021338,0.00020158,2]
[368706482,1751316633160,-460.0,0.00020158,2]
[368706484,1751316633171,-460.0,0.00020158,2]
[368706486,1751316633182,-486.29,0.00020158,2]
[368706488,1751316633193,-484.415928,0.00020158,2]
[368706490,1751316633205,-484.415928,0.00020158,2]
[368706492,1751316633215,-151.0,0.00020158,2]
[368706494,1751316633225,-460.0,0.00020158,2]
[368706496,1751316633235,-460.0,0.00020158,2]
[368706498,1751316633245,-599.96,0.00020158,2]
[368706500,1751316633254,-151.0,0.00020158,2]
[368706503,1751316633266,-151.0,0.00020158,2]
[368706505,1751316633276,-151.0,0.00020159,2]
[368706506,1751316633286,-460.0,0.00020159,2]
[368706509,1751316633297,-500.0,0.00020159,2]
[368706511,1751316633307,-500.0,0.00020159,2]
[368706513,1751316633317,-500.0,0.00020159,2]
[368706515,1751316633328,-500.0,0.00020159,2]
[368706517,1751316633337,-500.0,0.00020159,2]
[368706519,1751316633347,-256.14245566,0.00020159,2]
[368706521,1751316633358,-500.0,0.00020159,2]
[368706523,1751316633368,-500.0,0.00020159,2]
[368706525,1751316633379,-500.0,0.00020159,2]
[368706527,1751316633388,-500.0,0.00020159,2]
[368706529,1751316633398,-500.0,0.00020159,2]
[368706531,1751316633410,-500.0,0.00020159,2]
[368706533,1751316633424,-237.58740384,0.00020159,2]
[368706535,1751316633434,-500.0,0.00020159,2]
[368706537,1751316633444,-500.0,0.00020159,2]
[368706539,1751316633455,-500.0,0.00020159,2]
[368706541,1751316633465,-500.0,0.00020159,2]
[368706543,1751316633475,-500.0,0.00020159,2]